bitfinex/quotes_SOLUSD_20250102
["timestamp","ask_amount","ask_price","bid_price","bid_amount"]
[1735853687340,8.97533996,206.09,206.05,30.0]
[1735853687534,8.97533996,206.08,206.05,30.0]
[1735853688448,8.97533996,206.09,206.05,30.0]
[1735853688858,8.97533996,206.1,206.05,30.0]
[1735853690655,8.97533996,206.09,206.05,30.0]
[1735853695176,8.97533996,206.1,206.05,30.0]
[1735853699480,8.97533996,206.09,206.05,30.0]
[1735853701773,8.97533996,206.1,206.05,30.0]
[1735853708679,8.97533996,206.09,206.05,30.0]
[1735853715217,0.25098,206.15,206.05,30.0]
[1735853715521,8.97533996,206.11,206.05,30.0]
[1735853716174,8.97533996,206.09,206.05,30.0]
[1735853716604,8.97533996,206.09,206.03,1.6138]
[1735853719105,0.12549,206.13,206.03,10.58913996]
[1735853719405,8.97533996,206.09,206.03,1.6138]
[1735853719818,8.97533996,206.09,206.06,30.0]
[1735853720112,8.97533996,206.12,206.06,30.0]
[1735853720312,21.6092,206.16,206.06,30.0]
[1735853720493,8.97533996,206.12,206.06,30.0]
[1735853722804,8.97533996,206.09,206.03,31.6138]
[1735853722992,8.97533996,206.08,206.03,31.6138]
[1735853723410,8.97533996,206.07,206.0,45.52673996]
[1735853723908,8.97533996,206.06,206.0,45.52673996]
[1735853725187,8.97533996,206.07,206.0,45.52673996]
[1735853726611,8.97533996,206.07,206.01,8.97533996]
[1735853728191,8.97533996,206.07,206.0,45.52673996]
[1735853729513,8.97533996,206.08,206.01,8.97533996]
[1735853730113,25.318184,206.14,205.96,1.93590826]
[1735853730114,8.97533996,206.02,205.96,30.0]
[1735853730301,8.97533996,206.0,205.96,30.0]
[1735853730609,8.97533996,206.02,205.96,30.0]
[1735853730796,8.97533996,206.02,205.96,31.5527]
[1735853730999,8.97533996,206.02,205.99,30.0]
[1735853731685,32.1322,206.07,205.99,30.0]
[1735853731905,8.97533996,206.03,205.99,30.0]
[1735853733317,8.97533996,206.06,205.99,30.0]
[1735853733516,12.1294,206.11,205.99,30.0]
[1735853733701,8.97533996,206.05,205.99,30.0]
[1735853734505,8.97533996,206.04,205.99,30.0]
[1735853734718,8.97533996,206.03,205.96,40.52803996]
[1735853734905,8.97533996,206.03,205.96,31.5527]
[1735853735811,8.97533996,206.03,205.96,40.52803996]
[1735853737425,8.97533996,206.04,205.99,30.0]
[1735853738223,8.97533996,206.03,205.99,30.0]
[1735853739204,8.97533996,206.04,205.99,30.0]
[1735853740827,8.97533996,206.05,205.99,30.0]
[1735853741348,8.97533996,206.06,205.99,38.97533996]
[1735853742220,8.97533996,206.05,205.99,30.0]
[1735853750936,8.97533996,206.06,206.02,30.0]
[1735853753544,8.97533996,206.05,206.02,30.0]
[1735853754242,35.90135984,206.1,206.02,30.0]
[1735853754439,8.97533996,206.06,206.02,30.0]
[1735853755829,8.97533996,206.09,206.05,30.0]
[1735853756219,1.5589,206.15,206.05,30.0]
[1735853756425,8.97533996,206.09,206.05,30.0]
[1735853758943,8.97533996,206.1,206.05,30.0]
[1735853762152,12.1264,206.17,206.08,30.0]
[1735853762444,8.97533996,206.12,206.08,30.0]
[1735853763549,8.97533996,206.13,206.08,30.0]
[1735853764921,12.1264,206.17,206.09,8.97533996]
[1735853765256,8.97533996,206.16,206.11,30.0]
[1735853766627,8.97533996,206.17,206.11,38.97533996]
[1735853767035,8.97533996,206.19,206.15,30.0]
[1735853767435,8.97533996,206.19,206.13,8.97533996]
[1735853767644,12.1235,206.22,206.13,8.97533996]
[1735853767827,8.97533996,206.19,206.13,8.97533996]
[1735853769427,1.5993,206.24,206.15,30.0]
[1735853769627,20.0,206.26,206.16,8.97533996]
[1735853769628,12.1206,206.26,206.16,8.97533996]
[1735853769828,8.97533996,206.22,206.16,8.97533996]
[1735853770060,8.97533996,206.23,206.17,8.97533996]
[1735853770231,8.97533996,206.25,206.19,30.0]
[1735853770429,8.97533996,206.26,206.19,38.97533996]
[1735853770838,0.12549,206.3,206.2,8.97533996]
[1735853771030,8.97533996,206.26,206.2,8.97533996]
[1735853771377,8.97533996,206.27,206.22,30.0]
[1735853771862,12.1176,206.32,206.22,30.0]
[1735853772064,8.97533996,206.28,206.22,30.0]
[1735853772955,0.12549,206.31,206.22,30.0]
[1735853773142,8.97533996,206.28,206.22,30.0]
[1735853773865,12.1176,206.32,206.22,30.0]
[1735853774153,8.97533996,206.29,206.26,30.0]
[1735853774348,8.97533996,206.31,206.26,30.0]
[1735853774745,12.1145,206.37,206.26,30.0]
[1735853774960,0.25098,206.36,206.26,30.0]
[1735853775169,8.97533996,206.31,206.26,30.0]
[1735853776245,12.1145,206.37,206.29,30.0]
[1735853776444,8.97533996,206.34,206.29,30.0]
[1735853776861,8.97533996,206.36,206.29,38.97533996]
[1735853777070,8.97533996,206.38,206.34,30.0]
[1735853777279,1.5993,206.45,206.34,30.0]
[1735853777576,8.97533996,206.4,206.34,30.0]
[1735853777751,8.97533996,206.4,206.34,38.97533996]
[1735853778164,8.97533996,206.41,206.34,38.97533996]
[1735853778347,8.97533996,206.42,206.37,30.0]
[1735853778961,8.97533996,206.41,206.37,30.0]
[1735853779355,8.97533996,206.39,206.34,30.0]
[1735853779558,8.97533996,206.37,206.33,1.6141]
[1735853779968,8.97533996,206.36,206.33,1.6141]
[1735853781774,8.97533996,206.34,206.28,30.0]
[1735853781953,8.97533996,206.32,206.28,30.0]
[1735853782149,20.0,206.36,206.25,30.0]
[1735853782383,8.97533996,206.32,206.28,30.0]
[1735853782682,8.97533996,206.31,206.25,167.9]
[1735853784278,20.0,206.36,206.25,167.9]
[1735853784579,8.97533996,206.31,206.25,167.9]
[1735853785182,8.97533996,206.33,206.28,30.0]
[1735853786583,8.97533996,206.33,206.26,8.97533996]
[1735853786584,8.97533996,206.34,206.31,30.0]
[1735853787779,8.97533996,206.35,206.31,30.0]
[1735853788978,8.97533996,206.36,206.31,30.0]
[1735853789279,8.97533996,206.37,206.31,38.97533996]
[1735853789576,8.97533996,206.36,206.31,30.0]
[1735853790163,8.97533996,206.35,206.31,30.0]
[1735853790372,8.97533996,206.34,206.31,30.0]
[1735853790863,8.97533996,206.32,206.28,30.0]
[1735853791077,8.97533996,206.3,206.25,167.9]
[1735853793574,8.97533996,206.31,206.25,30.0]
[1735853794561,8.97533996,206.32,206.25,38.97533996]
[1735853795687,8.97533996,206.33,206.29,30.0]
[1735853796868,8.97533996,206.31,206.26,30.0]
[1735853797385,8.97533996,206.32,206.26,30.0]
[1735853797560,8.97533996,206.32,206.26,38.97533996]
[1735853798085,0.12549,206.37,206.26,38.97533996]
[1735853798387,8.97533996,206.32,206.26,38.97533996]
[1735853798968,8.97533996,206.32,206.26,30.0]
[1735853807498,8.97533996,206.31,206.26,30.0]
[1735853807685,8.97533996,206.3,206.26,30.0]
[1735853807990,12.1147,206.36,206.2,30.0]
[1735853807991,8.97533996,206.27,206.2,30.0]
[1735853808190,8.97533996,206.23,206.18,145.9671]
[1735853809898,8.97533996,206.23,206.18,8.0671]
[1735853810500,8.97533996,206.23,206.18,1.6015]
[1735853810699,8.97533996,206.24,206.2,30.0]
[1735853814002,8.97533996,206.24,206.18,1.6015]
[1735853814206,8.97533996,206.22,206.17,30.0]
[1735853814413,8.97533996,206.21,206.17,30.0]
[1735853815982,8.97533996,206.22,206.17,30.0]
[1735853820708,8.97533996,206.23,206.17,30.0]
[1735853822713,0.12549,206.26,206.17,30.0]
[1735853822714,8.97533996,206.21,206.17,30.0]
[1735853823810,8.97533996,206.22,206.17,30.0]
[1735853823990,8.97533996,206.25,206.18,8.97533996]
[1735853825525,8.97533996,206.25,206.17,38.97533996]
[1735853825690,8.97533996,206.24,206.17,38.97533996]
[1735853826425,1.6164,206.29,206.2,30.0]
[1735853826585,8.97533996,206.25,206.2,30.0]
[1735853827094,0.12549,206.29,206.2,30.0]
[1735853827297,8.97533996,206.25,206.2,30.0]
[1735853829909,8.97533996,206.21,206.17,30.0]
[1735853830094,8.97533996,206.2,206.17,30.0]
[1735853834628,8.97533996,206.24,206.17,38.97533996]
[1735853839822,20.0,206.26,206.17,38.97533996]
[1735853840023,8.97533996,206.24,206.17,38.97533996]
[1735853840212,8.97533996,206.25,206.17,38.97533996]
[1735853841012,8.97533996,206.24,206.17,38.97533996]
[1735853841925,8.97533996,206.24,206.2,30.0]
[1735853844913,8.97533996,206.25,206.2,30.0]
[1735853848947,12.1189,206.29,206.2,30.0]
[1735853849108,8.97533996,206.28,206.23,30.0]
[1735853849304,8.97533996,206.26,206.2,37.7509]
[1735853849541,8.97533996,206.24,206.2,37.7509]
[1735853849840,8.97533996,206.22,206.17,30.0]
[1735853850010,8.97533996,206.21,206.17,30.0]
[1735853850741,20.0,206.29,206.17,38.97533996]
[1735853850945,8.97533996,206.24,206.17,38.97533996]
[1735853851142,8.97533996,206.23,206.17,30.0]
[1735853851324,8.97533996,206.22,206.17,30.0]
[1735853851524,8.97533996,206.21,206.15,6.1058]
[1735853857353,8.97533996,206.22,206.15,15.08113996]
[1735853858960,8.97533996,206.23,206.16,8.97533996]
[1735853859258,8.97533996,206.22,206.15,15.08113996]
[1735853861370,12.1212,206.25,206.15,15.08113996]
[1735853861546,8.97533996,206.23,206.15,15.08113996]
[1735853862060,8.97533996,206.23,206.17,30.0]
[1735853867072,8.97533996,206.24,206.17,30.0]
[1735853867366,0.12549,206.28,206.17,38.97533996]
[1735853867574,8.97533996,206.24,206.2,30.0]
[1735853871275,8.97533996,206.25,206.2,30.0]
[1735853872363,8.97533996,206.27,206.21,1.5994]
[1735853872547,8.97533996,206.28,206.22,6.3988]
[1735853872751,8.97533996,206.28,206.23,30.0]
[1735853873561,8.97533996,206.29,206.23,30.0]
[1735853874181,8.97533996,206.29,206.26,30.0]
[1735853874483,8.97533996,206.3,206.26,30.0]
[1735853877884,20.0,206.34,206.26,30.0]
[1735853878080,8.97533996,206.3,206.26,30.0]
[1735853880387,8.97533996,206.29,206.26,30.0]
[1735853880595,8.97533996,206.28,206.23,167.9]
[1735853880790,8.97533996,206.26,206.23,167.9]
[1735853881086,8.97533996,206.26,206.23,137.9]
[1735853881594,8.97533996,206.27,206.23,30.0]
[1735853885872,8.97533996,206.28,206.23,30.0]
[1735853887969,8.97533996,206.27,206.23,30.0]
[1735853888578,8.97533996,206.27,206.22,6.3988]
[1735853890474,12.36748,206.33,206.21,1.5994]
[1735853890475,8.97533996,206.26,206.21,1.5994]
[1735853892997,8.97533996,206.25,206.2,30.0]
[1735853893399,0.12549,206.3,206.2,30.0]
[1735853893707,8.97533996,206.25,206.2,30.0]
[1735853894399,36.02684984,206.3,206.18,137.9]
[1735853894400,8.97533996,206.21,206.18,137.9]
[1735853894599,8.97533996,206.21,206.1,145.50216541]
[1735853894600,34.027864,206.18,206.1,145.50216541]
[1735853894906,8.97533996,206.11,206.1,7.60216541]
[1735853895108,8.97533996,206.11,206.09,7.60216541]
[1735853896212,8.97533996,206.11,206.05,30.0]
[1735853896406,8.97533996,206.09,206.05,30.0]
[1735853899713,12.1261,206.17,206.05,30.0]
[1735853899714,8.97533996,206.11,206.05,30.0]
[1735853899914,0.12549,206.16,206.05,30.0]
[1735853900219,8.97533996,206.12,206.05,38.97533996]
[1735853900716,35.90135984,206.2,206.09,30.0]
[1735853900887,8.97533996,206.13,206.09,30.0]
[1735853901087,8.97533996,206.15,206.09,30.0]
[1735853901311,8.97533996,206.13,206.09,30.0]
[1735853901496,8.97533996,206.12,206.09,30.0]
[1735853901896,8.97533996,206.13,206.09,30.0]
[1735853903713,8.97533996,206.12,206.09,30.0]
[1735853903918,8.97533996,206.1,206.06,30.0]
[1735853905011,8.97533996,206.09,206.06,30.0]
[1735853906895,8.97533996,206.1,206.06,30.0]
[1735853907399,24.027864,206.17,206.06,30.0]
[1735853907400,8.97533996,206.11,206.06,30.0]
[1735853907704,8.97533996,206.12,206.09,30.0]
[1735853909419,12.1258,206.18,206.09,30.0]
[1735853909600,8.97533996,206.1,206.06,137.9]
[1735853909800,24.027864,206.17,206.06,30.0]
[1735853909801,8.97533996,206.09,206.06,30.0]
[1735853910113,8.97533996,206.1,206.06,30.0]
[1735853911843,8.97533996,206.1,206.03,38.97533996]
[1735853912260,8.97533996,206.1,206.03,30.0]
[1735853912738,8.97533996,206.1,206.03,38.97533996]
[1735853914546,8.97533996,206.1,206.03,176.87533996]
[1735853915539,8.97533996,206.1,206.06,30.0]
[1735853917657,8.97533996,206.11,206.06,30.0]
[1735853921032,0.12549,206.17,206.06,30.0]
[1735853921338,8.97533996,206.13,206.06,38.97533996]
[1735853922248,8.97533996,206.13,206.09,30.0]
[1735853923549,8.97533996,206.14,206.09,30.0]
[1735853923852,8.97533996,206.15,206.09,30.0]
[1735853926155,0.25098,206.2,206.09,30.0]
[1735853926354,8.97533996,206.15,206.09,30.0]
[1735853929348,8.97533996,206.15,206.12,30.0]
[1735853929546,8.97533996,206.16,206.12,30.0]
[1735853930356,6.4219,206.21,206.12,30.0]
[1735853930652,8.97533996,206.16,206.12,30.0]
[1735853931029,8.97533996,206.17,206.12,30.0]
[1735853931758,6.4219,206.21,206.12,30.0]
[1735853931951,8.97533996,206.16,206.12,30.0]
[1735853932656,8.97533996,206.17,206.12,30.0]
[1735853932852,8.97533996,206.16,206.12,30.0]
[1735853933061,8.97533996,206.15,206.09,137.9]
[1735853933441,12.1241,206.2,206.12,30.0]
[1735853933648,8.97533996,206.17,206.12,30.0]
[1735853933952,8.97533996,206.16,206.12,30.0]
[1735853934251,8.97533996,206.16,206.09,30.0]
[1735853934458,8.97533996,206.14,206.09,30.0]
[1735853934760,8.97533996,206.15,206.09,30.0]
[1735853936157,12.1241,206.2,206.09,30.0]
[1735853936346,12.1241,206.2,206.09,38.97533996]
[1735853936571,8.97533996,206.16,206.09,38.97533996]
[1735853937260,8.97533996,206.16,206.12,30.0]
[1735853937837,8.97533996,206.19,206.12,30.0]
[1735853938259,8.97533996,206.19,206.15,30.0]
[1735853938947,8.97533996,206.17,206.12,30.0]
[1735853940460,8.97533996,206.16,206.12,30.0]
[1735853940661,8.97533996,206.16,206.11,137.9]
[1735853941444,8.97533996,206.15,206.09,30.0]
[1735853943862,12.1246,206.2,206.09,30.0]
[1735853944052,8.97533996,206.17,206.09,38.97533996]
[1735853948667,8.97533996,206.17,206.09,30.0]
[1735853950578,8.97533996,206.18,206.09,30.0]
[1735853953050,8.97533996,206.16,206.09,30.0]
[1735853953553,8.97533996,206.14,206.09,30.0]
[1735853953862,8.97533996,206.17,206.09,38.97533996]
[1735853954065,7.50527737,206.27,206.19,30.0]
[1735853954363,8.97533996,206.2,206.13,30.0]
[1735853954568,8.97533996,206.18,206.13,30.0]
[1735853955275,8.97533996,206.15,206.1,30.0]
[1735853955453,35.90135984,206.2,206.07,30.0]
[1735853955454,8.97533996,206.14,206.07,30.0]
[1735853955654,8.97533996,206.13,206.07,30.0]
[1735853956762,8.97533996,206.14,206.07,30.0]
[1735853956974,20.0,206.16,206.07,38.97533996]
[1735853957152,8.97533996,206.14,206.07,30.0]
[1735853959152,8.97533996,206.13,206.07,30.0]
[1735853959554,8.97533996,206.12,206.07,30.0]
[1735853959754,8.97533996,206.13,206.07,30.0]
[1735853966282,12.37618,206.19,206.07,30.0]
[1735853966457,8.97533996,206.15,206.07,30.0]
[1735853975693,8.97533996,206.13,206.07,30.0]
[1735853990321,12.1229,206.22,206.12,38.97533996]
[1735853990510,21.09823996,206.22,206.14,8.97533996]
[1735853991218,21.09823996,206.22,206.15,30.0]
[1735853991515,21.09823996,206.22,206.15,38.97533996]
[1735853991899,12.1229,206.22,206.15,38.97533996]
[1735853992717,20.0,206.26,206.16,8.97533996]
[1735853993008,8.97533996,206.23,206.16,8.97533996]
[1735853995714,8.97533996,206.23,206.15,30.0]
[1735853997432,20.0,206.24,206.18,8.97533996]
[1735853997595,12.1216,206.25,206.19,8.97533996]
[1735853997797,8.97533996,206.26,206.19,8.97533996]
[1735853998612,8.97533996,206.25,206.19,8.97533996]
[1735853999203,8.97533996,206.25,206.18,38.97533996]
[1735853999420,8.97533996,206.25,206.19,8.97533996]
[1735853999601,8.97533996,206.22,206.13,30.0]
[1735853999793,8.97533996,206.19,206.13,30.0]
[1735854004323,8.97533996,206.2,206.16,30.0]
[1735854007120,12.1212,206.25,206.16,30.0]
[1735854007327,8.97533996,206.2,206.16,30.0]
[1735854007535,12.1212,206.25,206.16,30.0]
[1735854007741,8.97533996,206.22,206.16,30.0]
[1735854009054,8.97533996,206.21,206.16,30.0]
[1735854009257,8.97533996,206.2,206.16,30.0]
[1735854009937,12.1212,206.25,206.16,30.0]
[1735854010137,8.97533996,206.21,206.16,30.0]
[1735854010638,8.97533996,206.22,206.16,30.0]
[1735854012751,12.1212,206.25,206.19,30.0]
[1735854012921,1.91798536,206.3,206.19,30.0]
[1735854012922,8.97533996,206.23,206.19,30.0]
[1735854013128,20.0,206.27,206.19,31.5195]
[1735854013328,12.1183,206.3,206.22,30.0]
[1735854013548,8.97533996,206.25,206.22,30.0]
[1735854014056,8.97533996,206.24,206.22,30.0]
[1735854015438,8.97533996,206.25,206.22,30.0]
[1735854016461,8.97533996,206.25,206.19,169.4195]
[1735854016834,8.97533996,206.22,206.19,31.5195]
[1735854017034,8.97533996,206.21,206.19,1.5195]
[1735854017233,8.97533996,206.2,206.19,1.5195]
[1735854019236,8.97533996,206.2,206.16,30.0]
[1735854019443,8.97533996,206.17,206.16,30.0]
[1735854019763,0.12549,206.25,206.16,30.0]
[1735854020060,12.1211,206.26,206.16,30.0]
[1735854020444,8.97533996,206.2,206.16,30.0]
[1735854021269,29.2354,206.31,206.2,30.0]
[1735854021270,12.1181,206.31,206.2,30.0]
[1735854021446,8.97533996,206.23,206.2,30.0]
[1735854021635,8.97533996,206.21,206.17,30.0]
[1735854021958,0.12549,206.29,206.17,30.0]
[1735854021959,8.97533996,206.19,206.17,30.0]
[1735854022868,8.97533996,206.18,206.14,167.9]
[1735854023049,8.97533996,206.17,206.14,30.0]
[1735854023867,8.97533996,206.15,206.14,30.0]
[1735854024051,8.97533996,206.15,206.13,7.6029]
[1735854024948,35.90135984,206.2,206.13,1.5517]
[1735854024949,8.97533996,206.14,206.13,1.5517]
[1735854025465,8.97533996,206.15,206.13,1.5517]
[1735854027571,8.97533996,206.14,206.13,1.5517]
[1735854028564,8.97533996,206.14,206.11,30.0]
[1735854028936,8.97533996,206.12,206.08,38.3219]
[1735854029167,8.97533996,206.11,206.08,38.3219]
[1735854031061,8.97533996,206.12,206.08,38.3219]
[1735854031363,8.97533996,206.12,206.0,40.90135984]
[1735854031364,20.0,206.05,205.96,175.50216541]
[1735854031673,8.97533996,205.97,205.96,37.60216541]
[1735854031955,8.97533996,205.97,205.96,30.0]
[1735854034067,8.97533996,205.97,205.91,30.0]
[1735854034363,8.97533996,205.96,205.95,30.0]
[1735854035665,8.97533996,205.96,205.92,30.0]
[1735854035866,8.97533996,205.95,205.92,30.0]
[1735854037662,8.97533996,205.96,205.92,30.0]
[1735854038666,8.97533996,205.94,205.92,30.0]
[1735854039167,8.97533996,205.95,205.92,30.0]
[1735854042872,8.97533996,205.95,205.89,30.0]
[1735854043364,8.97533996,205.92,205.89,30.0]
[1735854044381,8.97533996,205.92,205.86,30.0]
[1735854047177,8.97533996,205.91,205.86,30.0]
[1735854047388,8.97533996,205.96,205.91,30.0]
[1735854047557,12.1348,206.02,205.91,30.0]
[1735854047755,8.97533996,205.97,205.91,30.0]
[1735854048259,8.97533996,205.96,205.91,30.0]
[1735854048672,8.97533996,205.97,205.91,30.0]
[1735854053396,8.97533996,205.96,205.91,30.0]
[1735854055664,8.97533996,205.97,205.94,30.0]
[1735854056993,8.97533996,205.98,205.94,30.0]
[1735854058980,8.97533996,205.97,205.91,30.0]
[1735854059205,8.97533996,205.95,205.91,30.0]
[1735854061801,8.97533996,205.96,205.91,30.0]
[1735854062282,12.1348,206.02,205.94,30.0]
[1735854062283,8.97533996,205.97,205.94,30.0]
[1735854065004,8.97533996,205.96,205.94,30.0]
[1735854065297,8.97533996,205.95,205.91,30.0]
[1735854067388,8.97533996,205.93,205.88,30.0]
[1735854068607,8.97533996,205.94,205.88,30.0]
[1735854069505,8.97533996,205.93,205.88,30.0]
[1735854072603,8.97533996,205.94,205.88,30.0]
[1735854073599,8.97533996,205.97,205.93,30.0]
[1735854076192,8.97533996,205.99,205.93,30.0]
[1735854079596,8.97533996,205.97,205.93,30.0]
[1735854081417,12.1363,206.0,205.93,30.0]
[1735854081607,8.97533996,205.99,205.93,30.0]
[1735854084528,12.1363,206.0,205.93,30.0]
[1735854084700,8.97533996,205.98,205.93,30.0]
[1735854091709,12.1363,206.0,205.93,30.0]
[1735854091926,8.97533996,205.97,205.93,30.0]
[1735854094834,12.1363,206.0,205.93,30.0]
[1735854095131,8.97533996,205.97,205.93,30.0]
[1735854101038,8.97533996,205.99,205.93,30.0]
[1735854102528,12.1363,206.0,205.93,30.0]
[1735854102728,8.97533996,205.98,205.93,30.0]
[1735854103544,8.97533996,206.0,205.93,30.0]
[1735854103744,8.97533996,206.0,205.96,30.0]
[1735854105243,8.97533996,205.97,205.93,30.0]
[1735854119567,8.97533996,205.99,205.93,30.0]
[1735854124832,12.1345,206.03,205.93,30.0]
[1735854125140,8.97533996,205.99,205.93,30.0]
[1735854128961,12.1345,206.03,205.93,30.0]
[1735854129272,8.97533996,206.01,205.96,30.0]
[1735854129550,20.0,206.04,205.96,30.0]
[1735854129758,8.97533996,206.0,205.96,30.0]
[1735854134157,8.97533996,205.99,205.96,30.0]
[1735854134961,8.97533996,205.98,205.93,167.9]
[1735854137368,8.97533996,205.96,205.93,167.9]
[1735854137671,8.97533996,205.94,205.91,7.9917]
[1735854137966,8.97533996,205.95,205.91,7.9917]
[1735854138183,8.97533996,205.92,205.87,30.0]
[1735854138340,35.90135984,206.0,205.87,30.0]
[1735854138341,8.97533996,205.91,205.87,30.0]
[1735854139969,8.97533996,205.92,205.87,30.0]
[1735854144059,8.97533996,205.91,205.87,30.0]
[1735854144974,8.97533996,205.92,205.87,30.0]
[1735854145178,8.97533996,205.91,205.87,30.0]
[1735854146259,8.97533996,205.89,205.87,30.0]
[1735854146459,8.97533996,205.89,205.83,30.0]
[1735854149775,8.97533996,205.9,205.83,38.97533996]
[1735854151263,8.97533996,205.89,205.83,30.0]
[1735854153854,0.25098,205.94,205.83,38.97533996]
[1735854153855,8.97533996,205.9,205.83,38.97533996]
[1735854156581,8.97533996,205.9,205.84,8.97533996]
[1735854156799,8.97533996,205.91,205.84,8.97533996]
[1735854159268,8.97533996,205.9,205.83,38.97533996]
[1735854159886,8.97533996,205.9,205.81,146.1144]
[1735854159887,1.5088,205.95,205.87,38.97533996]
[1735854160182,8.97533996,205.94,205.87,38.97533996]
[1735854160562,8.97533996,205.93,205.87,38.97533996]
[1735854161884,8.97533996,205.93,205.87,30.0]
[1735854162269,8.97533996,205.92,205.87,30.0]
[1735854163165,1.5088,205.95,205.87,30.0]
[1735854163485,8.97533996,205.93,205.87,30.0]
[1735854166967,8.97533996,205.93,205.8,35.90135984]
[1735854166968,0.25098,205.87,205.79,30.0]
[1735854167166,8.97533996,205.8,205.76,30.0]
[1735854167495,1.79058,205.87,205.75,27.34303082]
[1735854167496,8.97533996,205.78,205.75,15.20433082]
[1735854167791,8.97533996,205.78,205.77,7.60216541]
[1735854168597,8.97533996,205.78,205.73,30.0]
[1735854168764,35.90135984,205.8,205.73,30.0]
[1735854168765,8.97533996,205.75,205.73,30.0]
[1735854169885,8.97533996,205.76,205.73,30.0]
[1735854170192,0.25098,205.82,205.73,30.0]
[1735854170390,8.97533996,205.76,205.73,30.0]
[1735854175002,8.97533996,205.76,205.71,6.4949]
[1735854175799,8.97533996,205.76,205.7,30.0]
[1735854177082,8.97533996,205.75,205.7,30.0]
[1735854177902,8.97533996,205.76,205.7,30.0]
[1735854186000,8.97533996,205.76,205.7,38.97533996]
[1735854186205,8.97533996,205.77,205.7,38.97533996]
[1735854186903,8.97533996,205.76,205.7,38.97533996]
[1735854187411,8.97533996,205.76,205.7,30.0]
[1735854190005,8.97533996,205.75,205.7,30.0]
[1735854190306,36.02684984,205.8,205.67,40.61813996]
[1735854190307,8.97533996,205.73,205.67,40.61813996]
[1735854191183,8.97533996,205.74,205.67,40.61813996]
[1735854193903,8.97533996,205.74,205.67,38.97533996]
[1735854194088,8.97533996,205.72,205.67,30.0]
[1735854195400,8.97533996,205.73,205.67,30.0]
[1735854196115,8.97533996,205.73,205.67,38.97533996]
[1735854197792,8.97533996,205.74,205.67,38.97533996]
[1735854199423,6.6215,205.77,205.68,8.97533996]
[1735854199721,8.97533996,205.74,205.67,38.97533996]
[1735854199920,8.97533996,205.73,205.67,38.97533996]
[1735854200106,8.97533996,205.74,205.67,38.97533996]
[1735854200491,6.5636,205.82,205.73,38.97533996]
[1735854200695,8.97533996,205.82,205.76,8.97533996]
[1735854202000,8.97533996,205.82,205.76,38.97533996]
[1735854202211,12.146,205.83,205.75,8.97533996]
[1735854202212,8.97533996,205.81,205.75,8.97533996]
[1735854202540,8.97533996,205.82,205.75,8.97533996]
[1735854203691,8.97533996,205.81,205.75,8.97533996]
[1735854204416,8.97533996,205.81,205.76,1.5301]
[1735854204629,8.97533996,205.83,205.76,10.50543996]
[1735854205113,8.97533996,205.83,205.76,40.50543996]
[1735854206204,8.97533996,205.83,205.77,8.97533996]
[1735854206418,28.97533996,205.84,205.77,8.97533996]
[1735854206926,28.97533996,205.84,205.78,8.97533996]
[1735854207524,28.97533996,205.84,205.77,8.97533996]
[1735854208326,8.97533996,205.83,205.76,40.50543996]
[1735854208529,8.97533996,205.82,205.76,40.50543996]
[1735854208729,8.97533996,205.82,205.76,31.5301]
[1735854210534,8.97533996,205.81,205.76,31.5301]
[1735854211336,8.97533996,205.82,205.76,31.5301]
[1735854212136,8.97533996,205.8,205.76,31.5301]
[1735854212314,8.97533996,205.8,205.76,1.5301]
[1735854215129,8.97533996,205.81,205.76,1.5301]
[1735854216653,12.1452,205.85,205.77,30.0]
[1735854216948,8.97533996,205.84,205.78,8.97533996]
[1735854217342,8.97533996,205.85,205.78,8.97533996]
[1735854217653,0.25098,205.89,205.79,8.97533996]
[1735854217831,8.97533996,205.85,205.78,8.97533996]